[Event "SixDays IM March 2024"]
[Site "Budapest"]
[Date "2024.04.01"]
[Round "4.4"]
[White "Radzimski, Antoni"]
[Black "Gu, Crystal Jiuzhou"]
[Result "1-0"]
[ECO "B10"]
[WhiteElo "2197"]
[BlackElo "2059"]
[Annotator "RC"]
[PlyCount "153"]
[EventDate "2024.03.26"]
[EventType "tourn"]
[EventCountry "HUN"]
[SourceTitle "playchess.com"]
[Source "ChessBase"]
[SourceQuality "1"]
[TimeControl "5400+30"]

1. e4 {[%emt 0:00:04]} c6 {[%emt 0:03:04]} 2. Nf3 {[%emt 0:00:09]} d5 {[%emt 0:00:24]} 3. exd5 {[%emt 0:00:23]} cxd5 {[%emt 0:00:42]} 4. Ne5 {[%emt 0:00:09]} Nf6 {[%emt 0:01:31]} 5. d4 {[%emt 0:00:30]} Nc6 {[%emt 0:03:54]} 6. c3 {[%emt 0:00:07]} Bf5 {[%emt 0:05:35]} 7. Bd3 {[%emt 0:01:27]} Bxd3 {[%emt 0:00:52]} 8. Qxd3 {[%emt 0:00:11]} e6 {[%emt 0:01:03]} 9. O-O {[%emt 0:01:36]} Bd6 {[%emt 0:07:55]} 10. Bf4 {[%emt 0:00:54]} O-O {[%emt 0:01:34]} 11. Nd2 Qc7 {[%emt 0:04:28]} 12. Qe2 {[%emt 0:05:17]} Nd7 {[%emt 0:02:49]} 13. Rae1 {[%emt 0:02:38]} Rac8 {[%emt 0:09:55]} 14. Bg3 {[%emt 0:06:09]} Ndxe5 {[%emt 0:05:58]} 15. dxe5 {[%emt 0:00:20]} Bc5 {[%emt 0:00:35]} 16. Kh1 {[%emt 0:04:24]} Ne7 {[%emt 0:02:32]} 17. f4 {[%emt 0:03:36]} Nf5 {[%emt 0:01:43]} 18. Bf2 {[%emt 0:01:01]} Bxf2 {[%emt 0:07:04]} 19. Qxf2 {[%emt 0:02:18]} Qc6 {[%emt 0:04:41]} 20. Nb3 {[%emt 0:21:08]} Rfd8 {[%emt 0:06:49]} 21. Rd1 {[%emt 0:05:15]} Qb6 {[%emt 0:14:38]} 22. Nd4 {[%emt 0:05:58]} Nxd4 {[%emt 0:00:41]} 23. Rxd4 {[%emt 0:01:03]} Rc4 {[%emt 0:01:12]} 24. Rfd1 {[%emt 0:01:49]} Rxd4 {[%emt 0:01:43]} 25. Rxd4 {[%emt 0:00:08]} Rc8 {[%emt 0:00:30]} 26. h3 {[%emt 0:01:50]} h6 {[%emt 0:00:27]} 27. Qe2 {[%emt 0:01:47]} Rc4 {[%emt 0:03:26]} 28. Rxc4 {[%emt 0:03:27]} dxc4 {[%emt 0:00:02]} 29. Qd2 {[%emt 0:02:42]} Qc6 {[%emt 0:02:21]} 30. Kg1 {[%emt 0:01:27]} Qe4 {[%emt 0:03:21]} 31. Kf2 {[%emt 0:01:17]} b5 {[%emt 0:01:23]} 32. Kg3 {[%emt 0:04:05]} Qb7 {[%emt 0:02:37]} 33. Qd4 {[%emt 0:00:19]} a6 {[%emt 0:00:18]} 34. Kf2 {[%emt 0:02:09]} Qc7 {[%emt 0:00:27]} 35. Kf3 {[%emt 0:03:47]} Qb7+ {[%emt 0:00:30]} 36. Qe4 {[%emt 0:00:26]} Qd7 {[%emt 0:00:37]} 37. Qd4 {[%emt 0:00:55]} Qb7+ {[%emt 0:00:32]} 38. Kg3 {[%emt 0:00:52]} Qc7 {[%emt 0:00:40]} 39. Kf3 {[%emt 0:00:07]} Qb7+ {[%emt 0:00:03]} 40. Kf2 {[%emt 0:00:33]} Qc7 {[%emt 0:00:11]} 41. Qe4 {[%emt 0:02:12]} Qc5+ {[%emt 0:00:37]} 42. Kf1 {[%emt 0:00:37]} Qc8 {[%emt 0:00:17]} 43. g4 {[%emt 0:00:35]} Qd7 {[%emt 0:00:23]} 44. Ke2 {[%emt 0:00:20]} Qd8 {[%emt 0:00:34]} 45. f5 {[%emt 0:00:47]} Qd7 {[%emt 0:00:38]} 46. b3 {[%emt 0:02:29]} cxb3 {[%emt 0:00:53]} 47. axb3 {[%emt 0:00:21]} Qc8 {[%emt 0:00:17]} 48. Kd2 {[%emt 0:00:34]} Qd8+ {[%emt 0:00:26]} 49. Kc2 {[%emt 0:00:07]} Qa5 {[%emt 0:00:39]} 50. Kb2 {[%emt 0:02:42]} Qb6 {[%emt 0:00:24]} 51. Qf4 {[%emt 0:01:39]} Qc6 {[%emt 0:01:04]} 52. h4 {[%emt 0:00:50]} Qg2+ {[%emt 0:00:32]} 53. Ka3 {[%emt 0:01:54]} Qg1 {[%emt 0:00:39]} 54. fxe6 {[%emt 0:01:46]} fxe6 {[%emt 0:00:17]} 55. Qe4 {[%emt 0:00:21]} Qc5+ {[%emt 0:00:20]} 56. Kb2 {[%emt 0:00:31]} Qf2+ {[%emt 0:00:07]} 57. Kc1 {[%emt 0:01:07]} Qxh4 {[%emt 0:00:43]} 58. Qa8+ {[%emt 0:00:15]} Kh7 {[%emt 0:00:09]} 59. Qe4+ {[%emt 0:01:30]} Kg8 {[%emt 0:00:12]} 60. c4 {[%emt 0:01:05]} bxc4 {[%emt 0:00:44]} 61. bxc4 {[%emt 0:00:04]} Qg5+ {[%emt 0:00:11]} 62. Kc2 {[%emt 0:00:32]} Qd8 {[%emt 0:01:10]} 63. c5 {[%emt 0:00:28]} Qc7 {[%emt 0:00:30]} 64. c6 {[%emt 0:00:32]} Kf7 {[%emt 0:00:22]} 65. Qc4 {[%emt 0:00:26]} Ke7 {[%emt 0:00:59]} 66. Qxa6 {[%emt 0:00:59]} g6 {[%emt 0:00:38]} 67. Kd3 {[%emt 0:00:43]} h5 {[%emt 0:00:26]} 68. gxh5 {[%emt 0:01:28]} gxh5 {[%emt 0:00:06]} 69. Qa3+ {[%emt 0:00:36]} Ke8 {[%emt 0:00:28]} 70. Qd6 {[%emt 0:03:03]} Qh7+ {[%emt 0:01:20]} 71. Kc3 {[%emt 0:00:43]} Qh6 {[%emt 0:00:20]} 72. Qd7+ {[%emt 0:00:16]} Kf8 {[%emt 0:00:03]} 73. Qd8+ {[%emt 0:00:10]} Kf7 {[%emt 0:00:13]} 74. Qf6+ {[%emt 0:00:20]} Qxf6 {[%emt 0:00:11]} 75. exf6 {[%emt 0:00:02]} h4 {[%emt 0:00:39]} 76. c7 {[%emt 0:00:04]} h3 {[%emt 0:00:13]} 77. c8=Q {[%emt 0:00:04]} 1-0

[Event "SixDays IM March 2024"]
[Site "Budapest"]
[Date "2024.04.01"]
[Round "4.5"]
[White "Advaitt Srikant Koduri"]
[Black "Demeter, Dorina"]
[Result "0-1"]
[ECO "D38"]
[WhiteElo "2125"]
[BlackElo "2296"]
[Annotator "ChessBase"]
[PlyCount "84"]
[EventDate "2024.03.26"]
[EventType "tourn"]
[EventCountry "HUN"]
[SourceTitle "playchess.com"]
[Source "ChessBase"]
[SourceQuality "1"]
[TimeControl "5400+30"]

1. Nf3 {[%emt 0:00:04]} d5 {[%emt 0:00:06]} 2. d4 {[%emt 0:00:09]} Nf6 {[%emt 0:00:24]} 3. c4 {[%emt 0:00:10]} e6 {[%emt 0:00:18]} 4. Nc3 {[%emt 0:00:08]} Bb4 {[%emt 0:02:57]} 5. Qa4+ {[%emt 0:00:10]} Nc6 {[%emt 0:00:07]} 6. Ne5 {[%emt 0:00:05]} a5 {[%emt 0:16:53]} 7. Nxc6 {[%emt 0:18:12]} bxc6 {[%emt 0:00:36]} 8. e3 {[%emt 0:06:02]} Ne4 {[%emt 0:12:22]} 9. Qc2 {[%emt 0:06:15]} O-O {[%emt 0:05:21]} 10. Bd3 {[%emt 0:02:00]} f5 {[%emt 0:00:19]} 11. O-O {[%emt 0:06:22]} Ba6 {[%emt 0:05:15]} 12. Ne2 {[%emt 0:08:45]} Be7 {[%emt 0:08:18]} 13. Rd1 {[%emt 0:08:22]} Rf6 {[%emt 0:07:06]} 14. Bd2 {[%emt 0:06:58]} Bd6 {[%emt 0:05:11]} 15. f4 {[%emt 0:05:03]} Rh6 {[%emt 0:05:48]} 16. Be1 {[%emt 0:02:44]} g5 {[%emt 0:02:14]} 17. c5 {[%emt 0:09:25]} Bxd3 {[%emt 0:01:02]} 18. Qxd3 {[%emt 0:00:38]} Be7 {[%emt 0:00:19]} 19. g3 {[%emt 0:01:10]} Qe8 {[%emt 0:00:41]} 20. Nc3 {[%emt 0:03:15]} gxf4 {[%emt 0:05:38]} 21. exf4 {[%emt 0:00:38]} Bf6 {[%emt 0:01:52]} 22. Nxe4 {[%emt 0:02:11]} fxe4 {[%emt 0:02:59]} 23. Qe2 {[%emt 0:00:13]} Qg6 {[%emt 0:00:30]} 24. Bc3 {[%emt 0:03:04]} Kh8 {[%emt 0:01:37]} 25. Rd2 {[%emt 0:02:34]} Rg8 {[%emt 0:00:28]} 26. Qe3 {[%emt 0:00:28]} Rh3 {[%emt 0:01:09]} 27. Rg2 {[%emt 0:01:48]} h5 {[%emt 0:02:45]} 28. Qe2 {[%emt 0:04:00]} Qf5 {[%emt 0:02:03]} 29. Rf1 {[%emt 0:01:17]} Rg4 {[%emt 0:00:03]} 30. Qe3 {[%emt 0:01:46]} h4 {[%emt 0:00:14]} 31. Kf2 {[%emt 0:01:08]} hxg3+ {[%emt 0:01:23]} 32. hxg3 {[%emt 0:00:21]} Bh4 {[%emt 0:00:08]} 33. Rfg1 {[%emt 0:00:19]} Rxf4+ {[%emt 0:00:33]} 34. Ke2 {[%emt 0:00:13]} Qh5+ {[%emt 0:01:50]} 35. Kd2 {[%emt 0:00:17]} Rf3 {[%emt 0:01:49]} 36. Qe2 {[%emt 0:01:32]} Qg5+ {[%emt 0:04:01]} 37. Kc2 {[%emt 0:00:17]} Rhxg3 {[%emt 0:00:26]} 38. Bd2 {[%emt 0:00:41]} Qf5 {[%emt 0:00:56]} 39. Rxg3 {[%emt 0:00:28]} Bxg3 {[%emt 0:00:58]} 40. Kc1 {[%emt 0:00:29]} e3 {[%emt 0:01:25]} 41. Bxe3 {[%emt 0:00:29]} Rxe3 {[%emt 0:00:13]} 42. Qd2 {[%emt 0:00:30]} Bf4 {[%emt 0:00:36]} 0-1

[Event "SixDays IM March 2024"]
[Site "Budapest"]
[Date "2024.04.01"]
[Round "5.1"]
[White "Demeter, Dorina"]
[Black "Hesham, Abdelrahman"]
[Result "0-1"]
[ECO "E68"]
[WhiteElo "2296"]
[BlackElo "2366"]
[Annotator "ChessBase"]
[PlyCount "96"]
[EventDate "2024.03.26"]
[EventType "tourn"]
[EventCountry "HUN"]
[SourceTitle "playchess.com"]
[Source "ChessBase"]
[SourceQuality "1"]
[TimeControl "5400+30"]

1. Nf3 {[%emt 0:00:08]} Nf6 {[%emt 0:08:36]} 2. c4 {[%emt 0:00:08]} g6 {[%emt 0:00:05]} 3. g3 {[%emt 0:00:04]} Bg7 {[%emt 0:00:07]} 4. Bg2 {[%emt 0:00:04]} O-O {[%emt 0:01:02]} 5. O-O {[%emt 0:00:04]} d6 {[%emt 0:00:05]} 6. Nc3 {[%emt 0:00:17]} e5 {[%emt 0:01:12]} 7. d4 {[%emt 0:00:04]} Nbd7 {[%emt 0:02:38]} 8. e4 {[%emt 0:00:32]} Re8 {[%emt 0:01:31]} 9. h3 {[%emt 0:02:22]} b6 {[%emt 0:00:16]} 10. Re1 {[%emt 0:05:50]} exd4 {[%emt 0:00:09]} 11. Nxd4 {[%emt 0:00:07]} Bb7 {[%emt 0:00:04]} 12. Nb3 {[%emt 0:28:14]} Rb8 {[%emt 0:00:10]} 13. Qc2 {[%emt 0:03:55]} Ne5 {[%emt 0:13:59]} 14. Nd2 {[%emt 0:02:24]} Nfd7 {[%emt 0:09:09]} 15. f4 {[%emt 0:10:09]} Nc6 {[%emt 0:00:22]} 16. Nf3 {[%emt 0:00:22]} Nc5 {[%emt 0:00:24]} 17. Nd5 {[%emt 0:05:06]} a5 {[%emt 0:01:15]} 18. Bd2 {[%emt 0:01:41]} Nb4 {[%emt 0:01:32]} 19. Bxb4 {[%emt 0:01:05]} axb4 {[%emt 0:00:51]} 20. e5 {[%emt 0:01:08]} dxe5 {[%emt 0:35:32]} 21. Nxe5 {[%emt 0:00:42]} Bxe5 {[%emt 0:03:53]} 22. fxe5 {[%emt 0:01:05]} Bxd5 {[%emt 0:00:09]} 23. Bxd5 {[%emt 0:12:20]} Qg5 {[%emt 0:00:29]} 24. Qf2 {[%emt 0:00:14]} Nd3 {[%emt 0:00:01]} 25. Qe3 {[%emt 0:01:05]} Qxe3+ {[%emt 0:00:09]} 26. Rxe3 {[%emt 0:00:03]} Nc5 {[%emt 0:00:10]} 27. Rf1 {[%emt 0:03:14]} Re7 {[%emt 0:03:58]} 28. Rf6 {[%emt 0:04:15]} Kg7 {[%emt 0:00:48]} 29. Ref3 {[%emt 0:01:25]} Rf8 {[%emt 0:00:27]} 30. Rc6 {[%emt 0:02:09]} Na6 {[%emt 0:01:26]} 31. Rcf6 {[%emt 0:00:48]} Nb8 {[%emt 0:00:41]} 32. e6 {[%emt 0:08:50]} c6 {[%emt 0:00:21]} 33. Be4 {[%emt 0:00:03]} Rxe6 {[%emt 0:00:11]} 34. Rxe6 {[%emt 0:00:05]} fxe6 {[%emt 0:00:05]} 35. Rb3 {[%emt 0:00:34]} c5 {[%emt 0:05:01]} 36. Rd3 {[%emt 0:00:04]} Kf6 {[%emt 0:00:27]} 37. a3 {[%emt 0:06:16]} Ke7 {[%emt 0:01:07]} 38. axb4 {[%emt 0:00:15]} cxb4 {[%emt 0:00:05]} 39. Rb3 {[%emt 0:01:59]} Na6 {[%emt 0:00:06]} 40. Bc6 {[%emt 0:00:16]} Kd6 {[%emt 0:04:53]} 41. Bb5 {[%emt 0:00:02]} Nc5 {[%emt 0:00:08]} 42. Rxb4 {[%emt 0:00:38]} Rf3 {[%emt 0:00:43]} 43. Kg2 {[%emt 0:00:30]} Rd3 {[%emt 0:04:57]} 44. Be8 {[%emt 0:00:10]} Kc7 {[%emt 0:00:04]} 45. Ba4 {[%emt 0:01:32]} e5 {[%emt 0:00:45]} 46. Be8 {[%emt 0:00:37]} e4 {[%emt 0:00:08]} 47. Bf7 {[%emt 0:00:31]} Rd2+ {[%emt 0:00:07]} 48. Kg1 {[%emt 0:00:31]} e3 {[%emt 0:00:13]} 0-1

[Event "SixDays IM March 2024"]
[Site "Budapest"]
[Date "2024.04.01"]
[Round "5.2"]
[White "Gu, Crystal Jiuzhou"]
[Black "Advaitt Srikant Koduri"]
[Result "0-1"]
[ECO "B23"]
[WhiteElo "2059"]
[BlackElo "2125"]
[Annotator "NA RC"]
[PlyCount "72"]
[EventDate "2024.03.26"]
[EventType "tourn"]
[EventCountry "HUN"]
[SourceTitle "playchess.com"]
[Source "ChessBase"]
[SourceQuality "1"]
[TimeControl "5400+30"]

1. e4 {[%emt 0:00:55]} c5 {[%emt 0:00:11]} 2. Nc3 {[%emt 0:00:14]} d6 {[%emt 0:00:40]} 3. g3 {[%emt 0:01:08]} Nc6 {[%emt 0:01:01]} 4. Nge2 {[%emt 0:01:06]} g6 {[%emt 0:00:47]} 5. Bg2 {[%emt 0:00:22]} Bg7 {[%emt 0:00:08]} 6. O-O {[%emt 0:00:48]} e5 {[%emt 0:02:01]} 7. d3 {[%emt 0:00:29]} Nge7 {[%emt 0:00:24]} 8. Be3 {[%emt 0:01:56]} O-O {[%emt 0:00:12]} 9. f4 {[%emt 0:01:34]} Nd4 {[%emt 0:03:51]} 10. Qd2 {[%emt 0:04:25]} Rb8 {[%emt 0:04:48]} 11. Nd1 {[%emt 0:12:19]} Bg4 {[%emt 0:07:53]} 12. Nxd4 {[%emt 0:01:37]} cxd4 {[%emt 0:00:22]} 13. Bf2 {[%emt 0:00:06]} Rc8 {[%emt 0:06:45]} 14. c3 {[%emt 0:06:25]} Qa5 {[%emt 0:03:23]} 15. Be1 {[%emt 0:03:08]} exf4 {[%emt 0:16:28]} 16. Qxf4 {[%emt 0:10:21]} Be2 {[%emt 0:07:25]} 17. Rf2 {[%emt 0:07:52]} Bxd3 {[%emt 0:02:43]} 18. Qxd6 {[%emt 0:03:04]} Nc6 {[%emt 0:02:07]} 19. Bd2 {[%emt 0:16:55]} Qb6 {[%emt 0:06:10]} 20. Qf4 {[%emt 0:05:56]} h6 {[%emt 0:15:12]} 21. Bf1 {[%emt 0:10:28]} Bxf1 {[%emt 0:05:01]} 22. Kxf1 {[%emt 0:01:06]} Ne5 {[%emt 0:00:24]} 23. Re2 {[%emt 0:03:38]} f5 {[%emt 0:03:31]} 24. Kg2 {[%emt 0:01:59]} Qb5 {[%emt 0:04:11]} 25. Qf1 {[%emt 0:03:49]} fxe4 {[%emt 0:00:58]} 26. Rf2 {[%emt 0:00:36]} Rxf2+ {[%emt 0:00:25]} 27. Qxf2 {[%emt 0:00:17]} e3 {[%emt 0:00:17]} 28. Nxe3 {[%emt 0:00:42]} dxe3 {[%emt 0:00:06]} 29. Bxe3 {[%emt 0:00:09]} Qc6+ {[%emt 0:00:04]} 30. Kg1 {[%emt 0:00:21]} Nf3+ {[%emt 0:00:48]} 31. Kf1 {[%emt 0:01:23]} Rf8 {[%emt 0:00:25]} 32. Bf4 {[%emt 0:00:41]} g5 {[%emt 0:00:07]} 33. Kg2 {[%emt 0:00:36]} Ne5+ {[%emt 0:00:32]} 34. Kg1 {[%emt 0:00:23]} gxf4 {[%emt 0:00:05]} 35. gxf4 {[%emt 0:00:19]} Nf3+ {[%emt 0:00:06]} 36. Kf1 {[%emt 0:00:12]} Rxf4 {[%emt 0:00:07]} 0-1

[Event "SixDays IM March 2024"]
[Site "Budapest"]
[Date "2024.04.01"]
[Round "5.3"]
[White "Toth-Goczo, Melinda"]
[Black "Radzimski, Antoni"]
[Result "0-1"]
[ECO "E48"]
[WhiteElo "2189"]
[BlackElo "2197"]
[Annotator "ChessBase"]
[PlyCount "80"]
[EventDate "2024.03.26"]
[EventType "tourn"]
[EventCountry "HUN"]
[SourceTitle "playchess.com"]
[Source "ChessBase"]
[SourceQuality "1"]
[TimeControl "5400+30"]

1. d4 {[%emt 0:08:06]} Nf6 {[%emt 0:00:05]} 2. c4 {[%emt 0:00:04]} e6 {[%emt 0:00:07]} 3. Nc3 {[%emt 0:00:11]} Bb4 {[%emt 0:00:07]} 4. e3 {[%emt 0:00:06]} O-O {[%emt 0:00:07]} 5. Bd3 {[%emt 0:00:39]} d5 {[%emt 0:00:07]} 6. cxd5 {[%emt 0:00:25]} exd5 {[%emt 0:00:13]} 7. Nge2 {[%emt 0:01:03]} b6 {[%emt 0:01:11]} 8. O-O {[%emt 0:04:28]} Bb7 {[%emt 0:02:55]} 9. a3 {[%emt 0:17:09]} Bd6 {[%emt 0:03:15]} 10. Ng3 {[%emt 0:23:40]} c5 {[%emt 0:05:07]} 11. Nf5 {[%emt 0:01:07]} Nc6 {[%emt 0:04:28]} 12. dxc5 {[%emt 0:16:58]} bxc5 {[%emt 0:02:18]} 13. e4 {[%emt 0:06:54]} d4 {[%emt 0:02:46]} 14. Nxd6 {[%emt 0:05:35]} Qxd6 {[%emt 0:00:34]} 15. Nb5 {[%emt 0:00:04]} Qe7 {[%emt 0:07:13]} 16. a4 {[%emt 0:02:31]} Ne5 {[%emt 0:01:21]} 17. f3 {[%emt 0:04:06]} c4 {[%emt 0:07:04]} 18. Bxc4 {[%emt 0:02:14]} Nxc4 {[%emt 0:00:22]} 19. Qxd4 {[%emt 0:00:00]} Ne5 {[%emt 0:02:36]} 20. Bf4 {[%emt 0:01:10]} Nc6 {[%emt 0:00:44]} 21. Qf2 {[%emt 0:02:03]} Rfd8 {[%emt 0:01:53]} 22. Rfd1 {[%emt 0:00:13]} Rxd1+ {[%emt 0:02:29]} 23. Rxd1 {[%emt 0:00:00]} Rd8 {[%emt 0:00:37]} 24. Rc1 {[%emt 0:01:30]} a6 {[%emt 0:04:33]} 25. Qb6 {[%emt 0:00:35]} axb5 {[%emt 0:00:55]} 26. Bc7 {[%emt 0:01:20]} Rc8 {[%emt 0:02:12]} 27. Qxb7 {[%emt 0:00:20]} Rxc7 {[%emt 0:00:09]} 28. Qb6 {[%emt 0:01:16]} bxa4 {[%emt 0:01:24]} 29. Rxc6 {[%emt 0:00:18]} Rxc6 {[%emt 0:00:06]} 30. Qxc6 {[%emt 0:00:02]} h6 {[%emt 0:00:22]} 31. h4 {[%emt 0:00:48]} Qd7 {[%emt 0:00:55]} 32. Qc2 {[%emt 0:00:16]} Qd4+ {[%emt 0:00:05]} 33. Kh2 {[%emt 0:00:08]} Qd6+ {[%emt 0:00:53]} 34. Kg1 {[%emt 0:01:26]} Qd4+ {[%emt 0:01:05]} 35. Kh2 {[%emt 0:00:03]} Nd7 {[%emt 0:00:31]} 36. Qc8+ {[%emt 0:00:30]} Kh7 {[%emt 0:00:06]} 37. f4 {[%emt 0:00:13]} Nf6 {[%emt 0:00:32]} 38. e5 {[%emt 0:00:55]} Qxf4+ {[%emt 0:00:05]} 39. g3 {[%emt 0:00:07]} Qxe5 {[%emt 0:00:07]} 40. Qc2+ {[%emt 0:00:03]} Ne4 {[%emt 0:00:08]} 0-1

[Event "SixDays IM March 2024"]
[Site "Budapest"]
[Date "2024.04.01"]
[Round "5.4"]
[White "Mouhamad, Joachim"]
[Black "Horvath, David"]
[Result "1/2-1/2"]
[ECO "B10"]
[WhiteElo "2278"]
[BlackElo "2330"]
[Annotator "ChessBase"]
[PlyCount "93"]
[EventDate "2024.03.26"]
[EventType "tourn"]
[EventCountry "HUN"]
[SourceTitle "playchess.com"]
[Source "ChessBase"]
[SourceQuality "1"]
[TimeControl "5400+30"]

1. e4 {[%emt 0:00:13]} c6 {[%emt 0:00:01]} 2. Nf3 {[%emt 0:01:16]} d5 {[%emt 0:00:05]} 3. Nc3 {[%emt 0:00:10]} dxe4 {[%emt 0:00:03]} 4. Nxe4 {[%emt 0:00:09]} Nf6 {[%emt 0:00:05]} 5. Qe2 {[%emt 0:00:18]} Nxe4 {[%emt 0:00:07]} 6. Qxe4 {[%emt 0:00:07]} Nd7 {[%emt 0:00:03]} 7. Bc4 {[%emt 0:00:13]} Nf6 {[%emt 0:00:04]} 8. Ne5 {[%emt 0:00:09]} e6 {[%emt 0:00:06]} 9. Qe2 {[%emt 0:00:15]} b5 {[%emt 0:00:50]} 10. Bd3 {[%emt 0:00:19]} Qc7 {[%emt 0:00:10]} 11. a4 {[%emt 0:00:51]} Nd5 {[%emt 0:37:38]} 12. axb5 {[%emt 0:10:17]} Nf4 {[%emt 0:00:51]} 13. Qe4 {[%emt 0:00:02]} Nxd3+ {[%emt 0:00:27]} 14. cxd3 {[%emt 0:04:29]} Bd6 {[%emt 0:35:05]} 15. Nc4 {[%emt 0:01:27]} Bb7 {[%emt 0:00:27]} 16. Rxa7 {[%emt 0:29:24]} Rxa7 {[%emt 0:03:04]} 17. b6 {[%emt 0:00:09]} Qd8 {[%emt 0:00:53]} 18. bxa7 {[%emt 0:01:03]} O-O {[%emt 0:03:01]} 19. Qd4 {[%emt 0:10:07]} Be7 {[%emt 0:01:25]} 20. Qxd8 {[%emt 0:09:17]} Rxd8 {[%emt 0:00:06]} 21. Ke2 {[%emt 0:00:09]} Ra8 {[%emt 0:04:00]} 22. b3 {[%emt 0:00:08]} Rxa7 {[%emt 0:01:21]} 23. Bb2 {[%emt 0:00:02]} f6 {[%emt 0:00:42]} 24. Ra1 {[%emt 0:01:18]} Rxa1 {[%emt 0:00:07]} 25. Bxa1 {[%emt 0:00:02]} Ba6 {[%emt 0:02:51]} 26. f4 {[%emt 0:03:36]} Kf7 {[%emt 0:00:40]} 27. Ke3 {[%emt 0:00:38]} Ke8 {[%emt 0:00:38]} 28. g4 {[%emt 0:00:37]} Kd7 {[%emt 0:04:09]} 29. h4 {[%emt 0:00:23]} h6 {[%emt 0:01:32]} 30. h5 {[%emt 0:01:37]} c5 {[%emt 0:00:49]} 31. Bb2 {[%emt 0:04:42]} Kc6 {[%emt 0:01:52]} 32. Ba3 {[%emt 0:01:27]} Kd5 {[%emt 0:01:06]} 33. Nb6+ {[%emt 0:02:56]} Kc6 {[%emt 0:00:09]} 34. Na4 {[%emt 0:00:36]} Kd5 {[%emt 0:01:15]} 35. Nc3+ {[%emt 0:00:10]} Kc6 {[%emt 0:00:40]} 36. Ne4 {[%emt 0:04:54]} e5 {[%emt 0:00:25]} 37. f5 {[%emt 0:12:49]} Bb7 {[%emt 0:00:42]} 38. Nc3 {[%emt 0:00:10]} Kb6 {[%emt 0:00:18]} 39. Na4+ {[%emt 0:00:34]} Kb5 {[%emt 0:00:09]} 40. Nb2 {[%emt 0:00:14]} Bd5 {[%emt 0:00:20]} 41. Nc4 {[%emt 0:00:14]} Kc6 {[%emt 0:00:50]} 42. Bb2 {[%emt 0:00:27]} Kb5 {[%emt 0:01:37]} 43. Bc3 {[%emt 0:00:02]} Ka6 {[%emt 0:00:14]} 44. Ke2 {[%emt 0:02:35]} Kb5 {[%emt 0:00:02]} 45. Ke3 {[%emt 0:00:23]} Ka6 {[%emt 0:00:04]} 46. Kf2 {[%emt 0:01:25]} Kb5 {[%emt 0:00:05]} 47. Ke3 1/2-1/2

[Event "SixDays IM March 2024"]
[Site "Budapest"]
[Date "2024.04.01"]
[Round "5.5"]
[White "Krizsany, Laszlo"]
[Black "Miszler, Levente"]
[Result "1/2-1/2"]
[ECO "D24"]
[WhiteElo "2341"]
[BlackElo "2287"]
[Annotator "RC"]
[PlyCount "34"]
[EventDate "2024.03.26"]
[EventType "tourn"]
[EventCountry "HUN"]
[SourceTitle "playchess.com"]
[Source "ChessBase"]
[SourceQuality "1"]
[TimeControl "5400+30"]

1. d4 {[%emt 0:00:23]} d5 {[%emt 0:00:08]} 2. c4 {[%emt 0:00:19]} dxc4 {[%emt 0:00:09]} 3. Nf3 {[%emt 0:00:08]} Nf6 {[%emt 0:00:11]} 4. Nc3 {[%emt 0:00:18]} a6 {[%emt 0:00:34]} 5. e4 {[%emt 0:00:49]} b5 {[%emt 0:00:37]} 6. e5 {[%emt 0:00:30]} Nd5 {[%emt 0:00:11]} 7. a4 {[%emt 0:00:47]} e6 {[%emt 0:01:55]} 8. axb5 {[%emt 0:00:19]} Bb4 {[%emt 0:00:19]} 9. Bd2 {[%emt 0:09:41]} Nb6 {[%emt 0:02:08]} 10. bxa6 {[%emt 0:01:26]} Bxa6 {[%emt 0:04:24]} 11. Be2 {[%emt 0:07:38]} Nc6 {[%emt 0:04:25]} 12. O-O {[%emt 0:04:50]} O-O {[%emt 0:03:47]} 13. Ne4 {[%emt 0:05:06]} Bxd2 {[%emt 0:08:29]} 14. Qxd2 {[%emt 0:00:40]} Qd5 {[%emt 0:00:48]} 15. Nc3 {[%emt 0:02:11]} Qd7 {[%emt 0:00:40]} 16. Ne4 {[%emt 0:02:48]} Qd5 {[%emt 0:01:56]} 17. Nc3 {[%emt 0:00:16]} Qd7 {[%emt 0:00:06]} 1/2-1/2

[Event "SixDays IM March 2024"]
[Site "Budapest"]
[Date "2024.04.02"]
[Round "6.1"]
[White "Hesham, Abdelrahman"]
[Black "Miszler, Levente"]
[Result "1-0"]
[ECO "D20"]
[WhiteElo "2366"]
[BlackElo "2287"]
[Annotator "RC"]
[PlyCount "59"]
[EventDate "2024.03.26"]
[EventType "tourn"]
[EventCountry "HUN"]
[SourceTitle "playchess.com"]
[Source "ChessBase"]
[SourceQuality "1"]
[TimeControl "5400+30"]

1. d4 {[%emt 0:14:26]} d5 {[%emt 0:00:08]} 2. c4 {[%emt 0:00:05]} dxc4 {[%emt 0:00:05]} 3. e4 {[%emt 0:00:05]} b5 {[%emt 0:00:10]} 4. a4 {[%emt 0:00:04]} c6 {[%emt 0:00:15]} 5. Nf3 {[%emt 0:00:04]} Nf6 {[%emt 0:03:56]} 6. axb5 {[%emt 0:00:36]} cxb5 {[%emt 0:00:46]} 7. Nc3 {[%emt 0:00:07]} Qb6 {[%emt 0:09:00]} 8. e5 {[%emt 0:01:07]} Nfd7 {[%emt 0:00:47]} 9. d5 {[%emt 0:17:22]} e6 {[%emt 0:06:29]} 10. d6 {[%emt 0:00:48]} Nc6 {[%emt 0:01:33]} 11. Be3 {[%emt 0:00:19]} Qb7 {[%emt 0:07:25]} 12. Nd4 {[%emt 0:00:55]} Nxd4 {[%emt 0:04:15]} 13. Qxd4 {[%emt 0:01:09]} b4 {[%emt 0:07:47]} 14. Ne4 {[%emt 0:10:22]} Qd5 {[%emt 0:00:40]} 15. f4 {[%emt 0:05:24]} Bb7 {[%emt 0:03:54]} 16. Nd2 {[%emt 0:00:23]} g5 {[%emt 0:04:08]} 17. Bxc4 {[%emt 0:16:39]} Qxd4 {[%emt 0:02:34]} 18. Bxd4 {[%emt 0:00:07]} gxf4 {[%emt 0:00:15]} 19. Bb5 {[%emt 0:00:32]} Bg7 {[%emt 0:07:55]} 20. Rc1 {[%emt 0:03:25]} Rc8 {[%emt 0:00:41]} 21. Kf2 {[%emt 0:03:27]} Kd8 {[%emt 0:02:04]} 22. Rxc8+ {[%emt 0:08:51]} Bxc8 {[%emt 0:00:21]} 23. Nf3 {[%emt 0:00:30]} Rf8 {[%emt 0:11:00]} 24. Rc1 {[%emt 0:04:52]} f6 {[%emt 0:01:12]} 25. Rc7 {[%emt 0:00:26]} fxe5 {[%emt 0:02:09]} 26. Bxd7 {[%emt 0:00:10]} Bxd7 {[%emt 0:00:57]} 27. Bxe5 {[%emt 0:00:04]} Rg8 {[%emt 0:01:33]} 28. Rxa7 {[%emt 0:02:41]} Bh6 {[%emt 0:01:44]} 29. Bf6+ {[%emt 0:00:16]} Ke8 {[%emt 0:00:09]} 30. Ne5 {[%emt 0:00:06]} 1-0

[Event "SixDays IM March 2024"]
[Site "Budapest"]
[Date "2024.04.02"]
[Round "6.2"]
[White "Horvath, David"]
[Black "Krizsany, Laszlo"]
[Result "1/2-1/2"]
[ECO "D14"]
[WhiteElo "2330"]
[BlackElo "2341"]
[Annotator "RC"]
[PlyCount "22"]
[EventDate "2024.03.26"]
[EventType "tourn"]
[EventCountry "HUN"]
[SourceTitle "playchess.com"]
[Source "ChessBase"]
[SourceQuality "1"]
[TimeControl "5400+30"]

1. d4 d5 2. c4 c6 3. Nf3 Nf6 4. cxd5 cxd5 5. Nc3 Nc6 6. Bf4 Bf5 7. e3 e6 8. Bd3 Bxd3 9. Qxd3 Bd6 10. Bxd6 Qxd6 11. O-O O-O 1/2-1/2